bitfinex-derivatives/quotes_BTCF0:USTF0_20250429
["timestamp","ask_amount","ask_price","bid_price","bid_amount"]
[1745910531663,0.2129144,94792.0,94791.0,1.8050166]
[1745910533565,0.2119144,94792.0,94791.0,1.8070166]
[1745910534559,0.2109144,94792.0,94791.0,1.8090166]
[1745910535169,0.2109144,94792.0,94791.0,1.8080166]
[1745910535758,0.2109144,94792.0,94791.0,1.8060166]
[1745910535968,0.2109144,94792.0,94791.0,1.8080166]
[1745910536562,0.2109144,94792.0,94791.0,1.8070166]
[1745910537261,0.2109144,94792.0,94791.0,1.8060166]
[1745910537470,0.2109144,94792.0,94791.0,1.8070166]
[1745910538771,0.2109144,94792.0,94791.0,1.8060166]
[1745910538961,0.2109144,94792.0,94791.0,1.8070166]
[1745910539161,0.2109144,94792.0,94791.0,1.8060166]
[1745910539361,0.2109144,94792.0,94791.0,1.8070166]
[1745910541069,0.2109144,94792.0,94791.0,1.8060166]
[1745910541265,0.2109144,94792.0,94791.0,1.8070166]
[1745910558488,0.2636391,94794.0,94793.0,0.2109121]
[1745910558885,0.2109116,94794.0,94793.0,0.2109121]
[1745910559184,0.316355,94801.0,94800.0,0.2108943]
[1745910559386,0.349355,94801.0,94800.0,0.2108943]
[1745910560179,0.469355,94801.0,94800.0,0.2108943]
[1745910561386,0.470355,94801.0,94800.0,0.2108943]
[1745910561581,0.471355,94801.0,94800.0,0.2108943]
[1745910564090,0.4186295,94801.0,94800.0,0.2108943]
[1745910564292,0.4511295,94801.0,94800.0,0.2108943]
[1745910566393,0.2109099,94794.0,94793.0,0.263633]
[1745910566592,0.2109144,94792.0,94791.0,1.7109133]
[1745910567292,0.2432144,94792.0,94791.0,1.7109133]
[1745910567593,0.2432144,94792.0,94791.0,1.7119133]
[1745910568694,0.2432144,94792.0,94791.0,1.7129133]
[1745910569195,0.2432144,94792.0,94791.0,1.7119133]
[1745910569395,0.2432144,94792.0,94791.0,1.7129133]
[1745910569988,0.2432144,94792.0,94791.0,1.7462133]
[1745910572095,0.2432144,94792.0,94791.0,1.7472133]
[1745910572292,0.2432144,94792.0,94791.0,1.7482133]
[1745910572498,0.2432144,94792.0,94791.0,1.8106133]
[1745910579588,0.2432144,94792.0,94791.0,1.8086133]
[1745910579789,0.2432144,94792.0,94791.0,1.8106133]
[1745910580900,0.2432144,94792.0,94791.0,1.8086133]
[1745910581100,0.2432144,94792.0,94791.0,1.8106133]
[1745910583191,0.2432144,94792.0,94791.0,1.8086133]
[1745910583392,0.2432144,94792.0,94791.0,1.8096133]
[1745910591703,0.2109299,94785.0,94784.0,0.3608]
[1745910591908,0.2109344,94783.0,94776.0,0.0644]
[1745910592105,0.3309344,94783.0,94782.0,0.21251617]
[1745910593412,0.3309344,94783.0,94782.0,0.21351617]
[1745910594105,0.3309344,94783.0,94782.0,0.21451617]
[1745910594312,0.3309344,94783.0,94782.0,0.24681617]
[1745910600910,0.3309344,94783.0,94782.0,0.27751617]
[1745910607724,0.3309344,94783.0,94782.0,1.77751617]
[1745910611427,0.12,94783.0,94782.0,2.13831617]
[1745910612018,0.3309344,94783.0,94782.0,2.13831617]
[1745910612214,0.2109344,94783.0,94782.0,2.13831617]
[1745910614220,0.2109344,94783.0,94782.0,2.15412016]
[1745910614416,0.2109344,94783.0,94782.0,0.65412016]
[1745910615027,0.2109344,94783.0,94782.0,0.63831617]
[1745910615326,0.2109344,94783.0,94782.0,0.65405519]
[1745910615721,0.2109344,94783.0,94782.0,0.65405636]
[1745910616323,0.2109344,94783.0,94782.0,2.15405636]
[1745910624547,0.2109344,94783.0,94782.0,1.79325636]
[1745910624731,0.2109344,94783.0,94782.0,2.15405636]
[1745910628941,0.2109344,94783.0,94782.0,2.1541565]
[1745910630030,0.2109344,94783.0,94782.0,1.7933565]
[1745910630237,0.2109344,94783.0,94782.0,2.1541565]
[1745910634040,0.2109344,94783.0,94782.0,2.13831617]
[1745910636036,0.2109344,94783.0,94782.0,2.15403374]
[1745910639345,0.0527314,94787.0,94782.0,2.15403374]
[1745910639535,0.4135158,94816.0,94783.0,0.01571757]
[1745910639740,0.4135158,94816.0,94782.0,1.98011647]
[1745910639741,0.1193183,94811.0,94792.0,0.3608]
[1745910639941,0.2108837,94807.0,94806.0,0.210881]
[1745910640250,0.3308837,94807.0,94806.0,0.22681351]
[1745910640545,0.3308837,94807.0,94806.0,1.72681351]
[1745910640754,0.3633837,94807.0,94806.0,1.72681351]
[1745910641238,0.3633837,94807.0,94806.0,1.710881]
[1745910641439,0.3683837,94807.0,94806.0,1.710881]
[1745910641641,0.3723837,94807.0,94806.0,1.72678329]
[1745910642048,0.3683837,94807.0,94806.0,1.72678329]
[1745910642246,0.2493837,94807.0,94806.0,1.72673306]
[1745910642441,0.26532414,94807.0,94806.0,1.72673306]
[1745910643236,0.26532414,94807.0,94806.0,1.710881]
[1745910643949,0.26132414,94807.0,94806.0,1.710881]
[1745910645047,0.2453837,94807.0,94806.0,1.710881]
[1745910652757,0.2453837,94807.0,94806.0,1.741581]
[1745910658657,0.2783837,94807.0,94806.0,1.741581]
[1745910666756,0.2783837,94807.0,94806.0,1.5307]
[1745910667754,0.2783837,94807.0,94806.0,1.7415832]
[1745910667949,0.2783837,94807.0,94806.0,1.5307]
[1745910668155,0.052724,94801.0,94784.0,0.0527327]
[1745910668453,0.2636367,94796.0,94795.0,0.2109063]
[1745910668760,0.2636367,94796.0,94795.0,1.7109063]
[1745910668946,0.3271367,94796.0,94795.0,1.7109063]
[1745910669358,0.3271367,94796.0,94795.0,1.7424063]
[1745910670354,0.2109233,94788.0,94780.0,0.21365543]
[1745910670656,0.2109233,94788.0,94787.0,0.6043255]
[1745910670852,0.2109233,94788.0,94787.0,2.1043255]
[1745910680355,0.2437233,94788.0,94787.0,2.1043255]
[1745910682959,0.2109233,94788.0,94787.0,2.1043255]
[1745910686369,0.2413233,94788.0,94787.0,2.1043255]
[1745910687459,0.2413233,94788.0,94787.0,1.7435255]
[1745910704663,0.2413233,94788.0,94787.0,1.75911115]
[1745910705570,0.2413233,94788.0,94787.0,1.7435255]
[1745910715290,0.2109006,94804.0,94803.0,0.2108877]
[1745910715582,0.2434006,94804.0,94803.0,0.2108877]
[1745910715880,0.2108899,94803.0,94802.0,0.031]
[1745910716081,0.2412899,94803.0,94802.0,1.5]
[1745910716272,0.28767239,94803.0,94802.0,1.7108921]
[1745910716785,0.28767239,94803.0,94802.0,1.5]
[1745910717283,0.2108988,94799.0,94798.0,0.2108994]
[1745910717783,0.2108988,94799.0,94798.0,1.7108994]
[1745910718171,0.3937988,94799.0,94798.0,1.7108994]
[1745910718578,0.3937988,94799.0,94798.0,1.5]
[1745910718772,0.2636339,94797.0,94796.0,0.0527261]
[1745910719079,0.3836339,94797.0,94796.0,0.0527261]
[1745910719282,0.4463339,94797.0,94796.0,1.5527261]
[1745910719581,0.4463339,94797.0,94796.0,1.7109055]
[1745910719781,0.4463339,94797.0,94796.0,1.72650226]
[1745910720789,0.2109233,94789.0,94788.0,0.2109216]
[1745910720979,0.2109233,94789.0,94788.0,0.22651591]
[1745910721380,0.2109233,94789.0,94788.0,1.7265164]
[1745910721583,0.2427233,94789.0,94788.0,1.7265164]
[1745910722673,0.2427233,94789.0,94788.0,1.7275164]
[1745910722883,0.2427233,94789.0,94788.0,1.7285164]
[1745910723085,0.2427233,94789.0,94788.0,1.72859024]
[1745910723682,0.2427233,94789.0,94788.0,1.72759024]
[1745910724089,0.2427233,94789.0,94788.0,1.72659024]
[1745910725088,0.2427233,94789.0,94788.0,1.72671701]
[1745910726791,0.2427233,94789.0,94788.0,1.7109216]
[1745910727089,0.2427233,94789.0,94788.0,1.72679727]
[1745910729984,0.0318,94789.0,94788.0,1.72679727]
[1745910730186,0.242721,94789.0,94788.0,1.72679727]
[1745910732489,0.242721,94789.0,94788.0,1.75739727]
[1745910732690,0.242721,94789.0,94788.0,1.78959727]
[1745910736992,0.210921,94789.0,94788.0,1.78959727]
[1745910741897,0.210921,94789.0,94788.0,1.7737216]
[1745910742092,0.210921,94789.0,94788.0,1.78963329]
[1745910745701,0.210921,94789.0,94788.0,1.78963455]
[1745910747703,0.210921,94789.0,94788.0,1.7896282]
[1745910749692,0.210921,94789.0,94788.0,1.78941618]
[1745910750800,0.210921,94789.0,94788.0,1.7737216]
[1745910752701,0.2427188,94790.0,94789.0,0.210921]
[1745910752901,0.2427188,94790.0,94789.0,0.274021]
[1745910753298,0.3627188,94790.0,94789.0,0.274021]
[1745910753496,0.1518,94790.0,94789.0,1.774021]
[1745910755000,0.3627188,94790.0,94789.0,1.774021]
[1745910765109,0.2427188,94790.0,94789.0,1.774021]
[1745910766110,0.3627188,94790.0,94789.0,1.774021]
[1745910769816,0.3627188,94790.0,94789.0,1.78958248]
[1745910770120,0.2427188,94790.0,94789.0,1.78958248]
[1745910770323,0.2427188,94790.0,94789.0,1.78958249]
[1745910771625,0.0318,94790.0,94789.0,1.78958249]
[1745910772626,0.0527286,94792.0,94791.0,0.2636407]
[1745910772816,0.0527286,94792.0,94791.0,0.37650219]
[1745910773226,0.1727286,94792.0,94791.0,0.37673052]
[1745910773927,0.3836474,94792.0,94791.0,0.37673052]
[1745910775929,0.3836474,94792.0,94791.0,0.37669741]
[1745910777815,0.3836474,94792.0,94791.0,0.37670951]
[1745910779613,0.3836474,94792.0,94791.0,0.37668667]
[1745910780624,0.38560382,94792.0,94791.0,0.37668667]
[1745910781623,0.38654506,94792.0,94791.0,0.37668667]
[1745910782616,0.33381646,94792.0,94791.0,0.37668667]
[1745910782816,0.33381646,94792.0,94791.0,0.37672642]
[1745910783016,0.33381646,94792.0,94791.0,0.37772642]
[1745910783216,0.33381646,94792.0,94791.0,0.37814468]
[1745910783625,0.33381646,94792.0,94791.0,0.37914468]
[1745910786625,0.33381646,94792.0,94791.0,0.37916374]
[1745910788632,0.33381646,94792.0,94791.0,0.37916725]
[1745910790221,0.33381646,94792.0,94791.0,0.37913234]
[1745910792129,0.33381646,94792.0,94791.0,0.37913138]
[1745910794132,0.33381646,94792.0,94791.0,0.37913967]
[1745910797827,0.36591646,94792.0,94791.0,0.37912534]
[1745910798026,0.36591646,94792.0,94791.0,0.32639674]
[1745910798231,0.36591646,94792.0,94791.0,0.29359674]
[1745910798728,0.36591646,94792.0,94791.0,0.22909674]
[1745910799834,0.36591646,94792.0,94791.0,0.22874592]
[1745910800140,0.72671646,94792.0,94791.0,0.01783382]
[1745910800432,0.72671646,94792.0,94791.0,0.002]
[1745910801536,0.2109255,94787.0,94786.0,1.7636578]
[1745910801838,0.21382316,94787.0,94786.0,1.51576054]
[1745910802043,0.21382316,94787.0,94786.0,1.5]
[1745910802227,0.33382316,94787.0,94786.0,1.7109277]
[1745910802430,0.42812316,94787.0,94786.0,1.7109277]
[1745910804232,0.42812316,94787.0,94786.0,1.5]
[1745910805333,0.2109299,94785.0,94784.0,0.2109302]
[1745910805742,0.21382756,94785.0,94784.0,0.2109302]
[1745910806240,0.33382756,94785.0,94784.0,0.2109302]
[1745910807540,0.2109322,94784.0,94783.0,1.7418344]
[1745910807740,0.2740322,94784.0,94783.0,1.7109344]
[1745910807939,0.27692986,94784.0,94783.0,1.7109344]
[1745910808139,0.39692986,94784.0,94783.0,1.5]
[1745910809647,0.39692986,94784.0,94783.0,1.501]
[1745910810345,0.39692986,94784.0,94783.0,1.502]
[1745910812335,0.39692986,94784.0,94783.0,1.5628]
[1745910816046,0.39692986,94784.0,94783.0,0.0628]
[1745910818047,0.39692986,94784.0,94783.0,0.2737344]
[1745910818643,0.36582986,94784.0,94783.0,0.2737344]
[1745910833856,0.36582986,94784.0,94783.0,0.0628]
[1745910841766,0.36582986,94784.0,94783.0,0.2737344]
[1745910843361,0.36582986,94784.0,94783.0,0.0628]
[1745910843559,0.36582986,94784.0,94783.0,0.2737344]
[1745910844559,0.36582986,94784.0,94783.0,0.0628]
[1745910844754,0.36582986,94784.0,94783.0,0.2737344]
[1745910849063,0.36582986,94784.0,94783.0,0.0628]
[1745910850270,0.36582986,94784.0,94783.0,0.2737344]
[1745910859473,0.36582986,94784.0,94783.0,0.0628]
[1745910863872,0.36582986,94784.0,94783.0,0.2737344]
[1745910866983,0.36582986,94784.0,94783.0,0.0628]
[1745910867183,0.36582986,94784.0,94783.0,0.2737344]
[1745910869693,0.12289766,94784.0,94783.0,0.2737344]
[1745910869890,0.2109137,94793.0,94792.0,0.2109121]
[1745910871186,0.2119137,94793.0,94792.0,0.2109121]
[1745910871388,0.2129137,94793.0,94792.0,0.2109121]
[1745910871685,0.2129137,94793.0,94792.0,1.7109121]
[1745910874886,0.2119137,94793.0,94792.0,1.7109121]
[1745910875081,0.2119137,94793.0,94792.0,1.7119121]
[1745910875889,0.2109137,94793.0,94792.0,1.7129121]
[1745910879287,0.210901,94798.0,94797.0,0.2109032]
[1745910880085,0.210901,94798.0,94797.0,1.7109032]
[1745910883296,0.210901,94798.0,94797.0,1.7724032]
[1745910883800,0.6042988,94799.0,94798.0,0.210901]
[1745910883988,0.6042988,94799.0,94798.0,0.272401]
[1745910885896,0.3608,94799.0,94798.0,0.272401]
[1745910886098,0.2108823,94807.0,94804.0,0.2108877]
[1745910886297,0.3936,94808.0,94807.0,0.210881]
[1745910886599,0.3608,94808.0,94807.0,0.210881]
[1745910887191,0.4808,94808.0,94807.0,0.210881]
[1745910887591,0.33088,94808.0,94807.0,0.210881]
[1745910887900,0.12,94808.0,94807.0,0.210881]
[1745910888097,0.13288324,94808.0,94807.0,0.210881]
[1745910888299,0.22376204,94808.0,94807.0,0.210881]
[1745910889385,0.22376204,94808.0,94807.0,0.22701898]
[1745910889591,0.22376204,94808.0,94807.0,0.210881]
[1745910890692,0.22376204,94808.0,94807.0,0.274381]
[1745910895193,0.01288324,94808.0,94807.0,0.274381]
[1745910895505,0.2108788,94808.0,94807.0,0.3271008]
[1745910896402,0.22382806,94808.0,94807.0,0.3291008]
[1745910897907,0.2108788,94808.0,94807.0,0.3291008]
[1745910898205,0.22397894,94808.0,94807.0,0.34509176]
[1745910902494,0.210876,94810.0,94809.0,0.2108743]
[1745910902699,0.210876,94810.0,94809.0,0.22686526]
[1745910903002,0.210876,94810.0,94809.0,0.25966526]
[1745910903400,0.2231494,94810.0,94809.0,0.25966526]
[1745910903801,0.2542494,94810.0,94809.0,0.29226526]
[1745910907102,0.0311,94810.0,94809.0,0.29226526]
[1745910910708,0.052715,94817.0,94814.0,0.2635769]
[1745910911010,0.0322,94816.0,94815.0,0.10839096]
[1745910911215,0.243061,94816.0,94815.0,0.31974769]
[1745910912704,0.244061,94816.0,94815.0,0.31974769]
[1745910913211,0.245061,94816.0,94815.0,0.31974769]
[1745910914815,0.245061,94816.0,94815.0,0.31974767]
[1745910920910,0.0342,94816.0,94815.0,0.31974767]
[1745910921110,0.002,94816.0,94815.0,0.31974767]
[1745910921509,0.002,94816.0,94815.0,1.81974767]
[1745910922715,0.001,94816.0,94815.0,1.81974767]
[1745910924213,0.427,94829.0,94828.0,0.2108343]
[1745910924409,0.427,94829.0,94828.0,0.22731877]
[1745910924710,0.3608,94829.0,94828.0,0.22731877]
[1745910924914,0.2108234,94833.0,94832.0,0.2108254]
[1745910925112,0.2108234,94833.0,94832.0,0.22730987]
[1745910925317,0.2547097,94834.0,94833.0,0.2108232]
[1745910925514,0.2547097,94834.0,94833.0,0.29200767]
[1745910925815,0.2547097,94834.0,94833.0,1.79200767]
[1745910927718,0.2587097,94834.0,94833.0,1.79200767]
[1745910928318,0.2627097,94834.0,94833.0,1.79200767]
[1745910929016,0.0396,94834.0,94833.0,1.79200767]
[1745910930617,0.0396,94834.0,94833.0,1.79200427]
[1745910933218,0.0396,94834.0,94833.0,1.7999555]
[1745910933426,0.250421,94834.0,94833.0,1.7999555]
[1745910933612,0.0396,94834.0,94833.0,1.7999555]
[1745910934726,0.0526896,94863.0,94833.0,2.0553803]
[1745910935029,0.0526903,94861.0,94860.0,0.2107632]
[1745910935324,0.0526903,94861.0,94860.0,0.22724033]
[1745910935726,0.0526903,94861.0,94860.0,0.29054033]
[1745910936126,0.18487826,94861.0,94860.0,0.29054033]
[1745910936319,0.39564636,94861.0,94860.0,1.79054033]
[1745910936718,0.39564636,94861.0,94860.0,1.7740632]
[1745910937218,0.40064636,94861.0,94860.0,1.7740632]
[1745910937720,0.40464636,94861.0,94860.0,1.7740632]
[1745910950431,0.40464636,94861.0,94860.0,1.5]
[1745910951428,0.40464636,94861.0,94854.0,0.2107759]
[1745910951429,0.2107743,94855.0,94854.0,0.2107759]
[1745910951626,0.5715743,94855.0,94854.0,0.2107759]
[1745910952034,0.5715743,94855.0,94854.0,1.7107759]
[1745910952225,0.7562743,94855.0,94854.0,1.7107759]
[1745910953336,0.7642743,94855.0,94854.0,1.7107759]
[1745910953727,0.4888,94855.0,94854.0,1.72715776]
[1745910953934,0.128,94855.0,94854.0,1.72715776]
[1745910954328,0.128,94855.0,94854.0,1.72717469]
[1745910955234,0.008,94855.0,94854.0,1.72717469]
[1745910955727,0.2187743,94855.0,94854.0,1.72717469]
[1745910955931,0.008,94855.0,94854.0,1.72717469]
[1745910956133,0.008,94855.0,94854.0,1.72721142]
[1745910957337,0.007,94855.0,94854.0,1.72721142]
[1745910960040,0.2177743,94855.0,94854.0,1.72721142]
[1745910961241,0.2177743,94855.0,94854.0,1.72698576]
[1745910961735,0.2477743,94855.0,94854.0,1.72698576]
[1745910962136,0.3677743,94855.0,94854.0,1.72698576]
[1745910964743,0.3377743,94855.0,94854.0,1.72698576]
[1745910966836,0.127,94855.0,94854.0,1.72698576]
[1745910967246,0.3377743,94855.0,94854.0,1.72698576]
[1745910967449,0.3377743,94855.0,94854.0,1.75838576]
[1745910969950,0.3377743,94855.0,94854.0,1.75865313]
[1745910972345,0.3377743,94855.0,94854.0,1.75864845]
[1745910972552,0.3695743,94855.0,94854.0,1.75864845]
[1745910974348,0.3695743,94855.0,94854.0,1.75865316]
[1745910977365,0.1588,94855.0,94854.0,1.75865316]
[1745910978256,0.3695743,94855.0,94854.0,1.75865316]
[1745910979863,0.3695743,94855.0,94854.0,1.7583611]
[1745910983760,0.3695743,94855.0,94854.0,1.75782767]
[1745910985463,0.3695743,94855.0,94854.0,1.75777076]
[1745910989467,0.1588,94855.0,94854.0,1.75777076]
[1745910989670,0.3695743,94855.0,94854.0,1.75777076]
[1745910989966,0.127,94855.0,94854.0,1.75777076]
[1745910990266,0.0015,94870.0,94854.0,1.75777076]
[1745910990267,0.0015,94870.0,94854.0,1.54699486]
[1745910990454,0.3608,94885.0,94854.0,1.54699486]
[1745910990455,0.22277887,94877.0,94876.0,0.2107266]
[1745910990661,0.0308,94884.0,94871.0,0.0943]
[1745910990866,0.2107365,94872.0,94871.0,0.0943]
[1745910991060,0.2107365,94872.0,94871.0,1.6101267]
[1745910991970,0.2425365,94872.0,94871.0,1.6101267]
[1745910992356,0.2425365,94872.0,94871.0,1.5943]
[1745910996061,0.3625365,94872.0,94871.0,1.5943]
[1745910997062,0.3625365,94872.0,94871.0,1.5628]
[1745911002468,0.3625365,94872.0,94871.0,1.5]
[1745911002869,0.2107543,94864.0,94863.0,0.0634]
[1745911003369,0.3307543,94864.0,94863.0,1.5634]
[1745911003764,0.3962543,94864.0,94863.0,1.5634]
[1745911003962,0.3962543,94864.0,94863.0,1.5654]
[1745911004162,0.3962543,94864.0,94863.0,1.5664]
[1745911004962,0.3962543,94864.0,94863.0,1.503]
[1745911005170,0.3962543,94864.0,94863.0,0.003]
[1745911005973,0.3962543,94864.0,94863.0,0.002]
[1745911007477,0.2107632,94860.0,94859.0,1.5648]
[1745911008277,0.3949632,94860.0,94859.0,1.5648]
[1745911011877,0.3617632,94860.0,94859.0,1.5648]
[1745911012177,0.3307632,94860.0,94859.0,1.5648]
[1745911013282,0.3307632,94860.0,94859.0,1.5678]
[1745911013880,0.2107632,94860.0,94859.0,1.5678]
[1745911014281,0.2107632,94860.0,94859.0,1.5688]
[1745911019970,0.2107632,94860.0,94859.0,1.5678]
[1745911020372,0.2107632,94860.0,94859.0,1.5668]
[1745911022584,0.2107632,94860.0,94859.0,1.5658]
[1745911022884,0.2107632,94860.0,94859.0,1.5668]
[1745911024179,0.3307632,94860.0,94859.0,0.0668]
[1745911025879,0.3307632,94860.0,94859.0,0.0658]
[1745911026776,0.3307632,94860.0,94859.0,0.0668]
[1745911028289,0.3307632,94860.0,94859.0,0.0658]
[1745911028489,0.3307632,94860.0,94859.0,0.2775654]
[1745911028678,0.3307632,94860.0,94859.0,0.0668]
[1745911029080,0.2107632,94860.0,94859.0,0.0658]
[1745911029280,0.2107632,94860.0,94859.0,0.0668]
[1745911029482,0.2107632,94860.0,94859.0,0.2775654]
[1745911029890,0.2107632,94860.0,94859.0,1.7765654]
[1745911030089,0.2107632,94860.0,94859.0,1.7775654]
[1745911031379,0.2107632,94860.0,94859.0,1.7765654]
[1745911031688,0.2634451,94864.0,94863.0,0.2107565]
[1745911031988,0.2107522,94871.0,94870.0,0.2107343]
[1745911032583,0.2107522,94871.0,94870.0,0.2753343]
[1745911032783,0.2634389,94871.0,94870.0,0.2753343]
[1745911033883,0.2107522,94871.0,94870.0,0.2753343]
[1745911034081,0.210735,94873.0,94872.0,0.2107343]
[1745911034589,0.210735,94873.0,94872.0,0.2753343]
[1745911034989,0.242835,94873.0,94872.0,0.2753343]
[1745911035589,0.210735,94873.0,94872.0,0.2753343]
[1745911037494,0.2428288,94876.0,94875.0,0.2107299]
[1745911037695,0.2107288,94876.0,94875.0,0.2107299]
[1745911038288,0.2107288,94876.0,94875.0,0.2726299]
[1745911038696,0.2117288,94876.0,94875.0,1.7726299]
[1745911039906,0.001,94876.0,94875.0,1.7726299]
[1745911040089,0.2117276,94876.0,94875.0,1.7726299]
[1745911040691,0.001,94876.0,94875.0,1.7726299]
[1745911041008,0.2117276,94876.0,94875.0,1.7726299]
[1745911042900,0.2107246,94884.0,94883.0,0.316049]
[1745911043096,0.3451326,94884.0,94883.0,0.316049]
[1745911045192,0.3461326,94884.0,94883.0,0.316049]
[1745911045398,0.135408,94884.0,94883.0,0.316049]
[1745911045603,0.121,94884.0,94883.0,0.316049]
[1745911046597,0.3317099,94884.0,94883.0,0.378849]
[1745911047201,0.121,94884.0,94883.0,0.378849]
[1745911047496,0.121,94884.0,94883.0,0.739649]
[1745911048296,0.001,94884.0,94883.0,0.739649]
[1745911049595,0.2417099,94884.0,94883.0,0.739649]
[1745911051993,0.031,94884.0,94883.0,0.739649]
[1745911053606,0.2417099,94884.0,94883.0,0.739649]
[1745911053805,0.031,94884.0,94883.0,0.739649]
[1745911055094,0.2417099,94884.0,94883.0,0.739649]
[1745911056601,0.031,94884.0,94883.0,0.739649]
[1745911056903,0.2417099,94884.0,94883.0,0.739649]
[1745911058206,0.3617099,94884.0,94883.0,0.739649]
[1745911061206,0.3617099,94884.0,94883.0,0.75526759]
[1745911066020,0.2107165,94882.0,94881.0,0.210716]
[1745911066521,0.2735165,94882.0,94881.0,0.210716]
[1745911066823,0.2735165,94882.0,94881.0,0.273916]
[1745911067119,0.3935165,94882.0,94881.0,0.273916]
[1745911067822,0.3945165,94882.0,94881.0,0.273916]
[1745911071520,0.3945165,94882.0,94881.0,0.28175592]
[1745911080732,0.3945165,94882.0,94881.0,0.21855592]
[1745911081328,0.3945165,94882.0,94881.0,0.28005592]
[1745911087337,0.3634165,94882.0,94881.0,0.28005592]
[1745911089028,0.1527,94882.0,94881.0,0.28005592]
[1745911092939,0.1517,94882.0,94881.0,0.28005592]
[1745911093128,0.1527,94882.0,94881.0,0.28005592]
[1745911101945,0.121,94882.0,94881.0,0.28005592]
[1745911102337,0.0305,94895.0,94894.0,0.2106877]
[1745911103243,0.1505,94895.0,94894.0,0.2745877]
[1745911103838,0.1505,94895.0,94894.0,1.7745877]
[1745911104339,0.1505,94895.0,94894.0,1.7755877]
[1745911105642,0.12,94895.0,94894.0,1.7755877]
[1745911105945,0.3608,94918.0,94917.0,0.2106366]
[1745911106139,0.4808,94918.0,94917.0,0.2106366]
[1745911106737,0.4808,94918.0,94917.0,0.2438366]
[1745911107340,0.4808,94918.0,94917.0,0.2769366]
[1745911114251,0.12,94918.0,94917.0,0.2769366]
[1745911122549,0.12,94918.0,94916.0,1.5]
[1745911122849,0.0954,94917.0,94916.0,1.5]
[1745911123053,0.0954,94917.0,94916.0,1.7106388]
[1745911123249,0.2154,94917.0,94916.0,1.7106388]
[1745911123952,0.2154,94917.0,94916.0,1.7432388]
[1745911124451,0.2154,94917.0,94915.0,0.2106402]
[1745911124652,0.2154,94917.0,94916.0,0.2106388]
[1745911125850,0.4260366,94917.0,94916.0,0.2106388]
[1745911126154,0.7868366,94917.0,94916.0,0.2106388]
[1745911126351,0.5762,94917.0,94916.0,0.2106388]
[1745911126552,0.7868366,94917.0,94916.0,0.2106388]
[1745911127252,0.7868366,94917.0,94916.0,0.2740388]
[1745911129758,0.5762,94917.0,94916.0,0.2740388]
[1745911129958,0.7868366,94917.0,94916.0,0.2740388]
[1745911131451,0.7543366,94917.0,94916.0,0.2740388]
[1745911132053,0.5114,94917.0,94916.0,0.2740388]
[1745911133557,0.7220366,94917.0,94916.0,0.2740388]
[1745911134049,0.3612366,94917.0,94916.0,0.2740388]
[1745911134251,0.7220366,94917.0,94916.0,0.2740388]
[1745911134458,0.72222633,94917.0,94916.0,0.2740388]
[1745911139562,0.51158973,94917.0,94916.0,0.2740388]
[1745911140467,0.72222633,94917.0,94916.0,0.2740388]
[1745911141666,0.72222633,94917.0,94889.0,0.8325746]
[1745911141667,0.2106766,94899.0,94889.0,0.8325746]
[1745911141972,0.2106766,94899.0,94891.0,0.0313]
[1745911142165,0.3306766,94899.0,94893.0,0.2106893]
[1745911142369,0.3948766,94899.0,94893.0,0.0304]
[1745911142670,0.3948766,94899.0,94898.0,0.00358062]
[1745911142870,0.3948766,94899.0,94898.0,0.00658062]
[1745911143465,0.3948766,94899.0,94898.0,0.005]
[1745911143882,0.3948766,94899.0,94898.0,0.004]
[1745911144673,0.3948766,94899.0,94898.0,0.002]
[1745911144971,0.3948766,94899.0,94898.0,0.003]
[1745911145568,0.3948766,94899.0,94898.0,0.001]
[1745911145769,0.3948766,94899.0,94898.0,0.002]
[1745911147875,0.3948766,94899.0,94887.0,0.00158082]
[1745911147876,0.210701,94888.0,94887.0,0.00158082]
[1745911148074,0.691501,94888.0,94887.0,0.00158082]
[1745911148374,0.796889,94888.0,94887.0,2e-08]
[1745911148765,0.2107498,94866.0,94862.0,0.031]
[1745911148970,0.5715498,94866.0,94863.0,0.0305]
[1745911149167,0.6915498,94866.0,94863.0,0.0305]
[1745911149475,0.73671168,94866.0,94863.0,0.0305]
[1745911150070,0.76801168,94866.0,94865.0,0.01005412]
[1745911151078,0.2107521,94865.0,94858.0,0.16092073]
[1745911151272,0.0526906,94861.0,94853.0,0.0303]
[1745911151472,0.0526928,94857.0,94854.0,0.0633]
[1745911151674,0.3608,94855.0,94854.0,0.0633]
[1745911151873,0.5715743,94855.0,94854.0,0.0633]
[1745911152071,0.6915743,94855.0,94854.0,0.0633]
[1745911152273,0.7528743,94855.0,94854.0,0.0633]
[1745911152877,0.7528743,94855.0,94854.0,0.0663]
[1745911153470,0.7528743,94855.0,94854.0,0.0673]
[1745911154170,0.8582983,94855.0,94854.0,0.004]
[1745911155171,0.8582983,94855.0,94854.0,0.0359]
[1745911155978,0.9243383,94855.0,94854.0,0.0359]
[1745911157081,0.7877143,94855.0,94854.0,0.0359]
[1745911161989,0.7216743,94855.0,94854.0,0.0359]
[1745911162189,0.7877143,94855.0,94854.0,0.0359]
[1745911162385,0.7216743,94855.0,94854.0,0.0359]
[1745911162689,0.7877143,94855.0,94854.0,0.0359]
[1745911163774,0.7877143,94855.0,94854.0,0.068]
[1745911166292,0.7877143,94855.0,94854.0,0.1005]
[1745911167688,0.7576143,94855.0,94854.0,0.1005]
[1745911168991,0.6915743,94855.0,94854.0,0.1005]
[1745911169179,0.7576143,94855.0,94854.0,0.3112765]
[1745911169585,0.6915743,94855.0,94854.0,0.3112765]
[1745911170798,0.4808,94855.0,94854.0,0.3112765]
[1745911171089,0.3608,94855.0,94854.0,0.3112765]
[1745911171282,0.5715743,94855.0,94854.0,0.3112765]
[1745911172283,0.5715743,94855.0,94854.0,1.8112765]
[1745911175188,0.01330575,94869.0,94855.0,0.0526934]
[1745911175390,0.2107498,94867.0,94866.0,0.2634324]
[1745911176106,0.3307498,94867.0,94866.0,0.2634324]
[1745911176892,0.12,94867.0,94866.0,0.2634324]
[1745911177293,0.06604,94869.0,94868.0,0.2107454]
[1745911177500,0.2767832,94869.0,94868.0,0.2107454]
[1745911177682,0.06604,94869.0,94868.0,0.2107454]
[1745911177887,0.06604,94869.0,94868.0,0.2712454]
[1745911178089,0.3967832,94869.0,94868.0,0.2712454]
[1745911179995,0.12,94869.0,94868.0,0.2712454]
[1745911180196,0.2767706,94875.0,94874.0,0.2107321]
[1745911180694,0.06604,94875.0,94874.0,0.2107321]
[1745911181085,0.2767699,94875.0,94874.0,0.2107321]
[1745911181988,0.2767699,94875.0,94874.0,0.2117321]
[1745911182192,0.2767699,94875.0,94874.0,0.2147321]
[1745911183102,0.06604,94879.0,94874.0,0.0566829]